[Event "Live Chess"]
[Site "Chess.com"]
[Date "2010.12.12"]
[Round "-"]
[White "hipposcottimus"]
[Black "Zelrome"]
[Result "0-1"]
[CurrentPosition "5Q2/pp3ppk/2p4p/4Nb2/5P2/8/6PP/5q1K w - -"]
[Timezone "UTC"]
[ECO "A06"]
[ECOUrl "https://www.chess.com/openings/Reti-Opening-Tennison-Gambit"]
[UTCDate "2010.12.12"]
[UTCTime "02:47:43"]
[WhiteElo "1626"]
[BlackElo "1800"]
[TimeControl "60"]
[Termination "Zelrome won by checkmate"]
[StartTime "02:47:43"]
[EndDate "2010.12.12"]
[EndTime "02:49:38"]
[Link "https://www.chess.com/game/live/76422835"]

1. e4 {[%clk 0:01:00]} 1... d5 {[%clk 0:01:00]} 2. Nf3 {[%clk 0:00:59.8]} 2... c6 {[%clk 0:00:59.4]} 3. Ng5 {[%clk 0:00:59.5]} 3... dxe4 {[%clk 0:00:57.4]} 4. Nxe4 {[%clk 0:00:58.2]} 4... Nf6 {[%clk 0:00:56]} 5. Nbc3 {[%clk 0:00:56.3]} 5... Nd5 {[%clk 0:00:54.4]} 6. d3 {[%clk 0:00:54.3]} 6... e5 {[%clk 0:00:52.6]} 7. Be2 {[%clk 0:00:52.4]} 7... Bc5 {[%clk 0:00:51.9]} 8. O-O {[%clk 0:00:49.1]} 8... Nf6 {[%clk 0:00:51]} 9. Kh1 {[%clk 0:00:48.8]} 9... Nxe4 {[%clk 0:00:50.1]} 10. Nxe4 {[%clk 0:00:48.4]} 10... Bb6 {[%clk 0:00:49.5]} 11. Be3 {[%clk 0:00:46.8]} 11... Nd7 {[%clk 0:00:48.3]} 12. Bxb6 {[%clk 0:00:45.6]} 12... Nxb6 {[%clk 0:00:48.1]} 13. c3 {[%clk 0:00:45.3]} 13... Nd7 {[%clk 0:00:47.8]} 14. d4 {[%clk 0:00:44.1]} 14... Nf6 {[%clk 0:00:47.5]} 15. Ng3 {[%clk 0:00:40.8]} 15... exd4 {[%clk 0:00:46.4]} 16. cxd4 {[%clk 0:00:40.2]} 16... O-O {[%clk 0:00:45]} 17. Bc4 {[%clk 0:00:40]} 17... Re8 {[%clk 0:00:44.5]} 18. Qb3 {[%clk 0:00:39.3]} 18... Be6 {[%clk 0:00:44.1]} 19. d5 {[%clk 0:00:38.1]} 19... Nxd5 {[%clk 0:00:42.2]} 20. Qf3 {[%clk 0:00:34.9]} 20... Qe7 {[%clk 0:00:33.3]} 21. Bd3 {[%clk 0:00:34.5]} 21... Rad8 {[%clk 0:00:30.8]} 22. Rad1 {[%clk 0:00:32.7]} 22... Nb4 {[%clk 0:00:28.8]} 23. Ne4 {[%clk 0:00:32.4]} 23... Nxd3 {[%clk 0:00:27.7]} 24. Rxd3 {[%clk 0:00:31]} 24... Rxd3 {[%clk 0:00:27.3]} 25. Qxd3 {[%clk 0:00:30.4]} 25... Bf5 {[%clk 0:00:26.1]} 26. f3 {[%clk 0:00:28.9]} 26... Rd8 {[%clk 0:00:25.7]} 27. Qe3 {[%clk 0:00:27.8]} 27... Be6 {[%clk 0:00:24.4]} 28. Qf4 {[%clk 0:00:26.7]} 28... Bxa2 {[%clk 0:00:23.7]} 29. Qg3 {[%clk 0:00:26.4]} 29... Be6 {[%clk 0:00:22.7]} 30. Ng5 {[%clk 0:00:25.6]} 30... Qb4 {[%clk 0:00:21.9]} 31. f4 {[%clk 0:00:24.9]} 31... Bf5 {[%clk 0:00:19.9]} 32. Qh4 {[%clk 0:00:21.1]} 32... h6 {[%clk 0:00:17.7]} 33. Nf3 {[%clk 0:00:18.8]} 33... Qxb2 {[%clk 0:00:17.3]} 34. Qxd8+ {[%clk 0:00:14.4]} 34... Kh7 {[%clk 0:00:15.6]} 35. Ne5 {[%clk 0:00:13.3]} 35... Qb5 {[%clk 0:00:12.5]} 36. Qf8 {[%clk 0:00:11.8]} 36... Qxf1# {[%clk 0:00:11.2]} 0-1

[Event "Live Chess"]
[Site "Chess.com"]
[Date "2010.12.12"]
[Round "-"]
[White "hipposcottimus"]
[Black "ruachessnut2"]
[Result "1-0"]
[CurrentPosition "r4k2/ppp1p3/3p1p1r/2q2B2/6R1/6Q1/PPP3PP/5R1K b - -"]
[Timezone "UTC"]
[ECO "A41"]
[ECOUrl "https://www.chess.com/openings/Queens-Pawn-Opening-Wade-Defense-3.e4"]
[UTCDate "2010.12.12"]
[UTCTime "01:27:38"]
[WhiteElo "1422"]
[BlackElo "1427"]
[TimeControl "300"]
[Termination "hipposcottimus won on time"]
[StartTime "01:27:38"]
[EndDate "2010.12.12"]
[EndTime "01:37:07"]
[Link "https://www.chess.com/game/live/76406883"]

1. e4 {[%clk 0:05:00]} 1... d6 {[%clk 0:05:00]} 2. Nf3 {[%clk 0:04:59.6]} 2... Bg4 {[%clk 0:04:55.5]} 3. d4 {[%clk 0:04:58.9]} 3... Nf6 {[%clk 0:04:52.8]} 4. Nc3 {[%clk 0:04:54.4]} 4... Nc6 {[%clk 0:04:43.7]} 5. d5 {[%clk 0:04:46.9]} 5... Ne5 {[%clk 0:04:39.9]} 6. Be2 {[%clk 0:04:42.8]} 6... Nxf3+ {[%clk 0:04:29.8]} 7. Bxf3 {[%clk 0:04:34.3]} 7... Bd7 {[%clk 0:04:20.3]} 8. O-O {[%clk 0:04:26.2]} 8... g6 {[%clk 0:04:14.9]} 9. Re1 {[%clk 0:02:59.2]} 9... Bg7 {[%clk 0:03:55.1]} 10. Be2 {[%clk 0:02:45.4]} 10... O-O {[%clk 0:03:48.7]} 11. f4 {[%clk 0:02:37.9]} 11... h5 {[%clk 0:03:38]} 12. f5 {[%clk 0:02:20.1]} 12... gxf5 {[%clk 0:03:26.4]} 13. Bxh5 {[%clk 0:02:06.7]} 13... fxe4 {[%clk 0:03:08.9]} 14. Nxe4 {[%clk 0:01:55.1]} 14... Bf5 {[%clk 0:02:55]} 15. Nxf6+ {[%clk 0:01:39.3]} 15... Bxf6 {[%clk 0:02:39.7]} 16. Rf1 {[%clk 0:01:31.2]} 16... Bg6 {[%clk 0:02:29.5]} 17. Qg4 {[%clk 0:01:23.1]} 17... Kg7 {[%clk 0:02:09.9]} 18. Qg3 {[%clk 0:01:14.8]} 18... Be5 {[%clk 0:01:58.5]} 19. Bf4 {[%clk 0:01:07.2]} 19... Bxf4 {[%clk 0:01:46.5]} 20. Rxf4 {[%clk 0:00:59.3]} 20... Rh8 {[%clk 0:01:42]} 21. Bg4 {[%clk 0:00:55.8]} 21... Qg8 {[%clk 0:01:26.2]} 22. Raf1 {[%clk 0:00:54.9]} 22... f6 {[%clk 0:01:15.6]} 23. Bf5 {[%clk 0:00:50.3]} 23... Kf8 {[%clk 0:01:03.9]} 24. Bxg6 {[%clk 0:00:47.1]} 24... Rh6 {[%clk 0:00:50.7]} 25. Rg4 {[%clk 0:00:42.3]} 25... Qxd5 {[%clk 0:00:36.3]} 26. Bf5 {[%clk 0:00:34]} 26... Qc5+ {[%clk 0:00:12.9]} 27. Kh1 {[%clk 0:00:31.4]} 1-0

[Event "Live Chess"]
[Site "Chess.com"]
[Date "2010.12.12"]
[Round "-"]
[White "jodysangel"]
[Black "hipposcottimus"]
[Result "1-0"]
[CurrentPosition "R7/pp1b2kp/2n2p2/2pB1p2/8/3P4/PPP2PPP/2K4R b - -"]
[Timezone "UTC"]
[ECO "C26"]
[ECOUrl "https://www.chess.com/openings/Vienna-Game-Falkbeer-Stanley-Variation"]
[UTCDate "2010.12.12"]
[UTCTime "01:16:43"]
[WhiteElo "1290"]
[BlackElo "1422"]
[TimeControl "600"]
[Termination "jodysangel won on time"]
[StartTime "01:16:43"]
[EndDate "2010.12.12"]
[EndTime "01:26:50"]
[Link "https://www.chess.com/game/live/76403403"]

1. e4 {[%clk 0:10:00]} 1... e5 {[%clk 0:10:00]} 2. Nc3 {[%clk 0:09:52]} 2... Nf6 {[%clk 0:09:52.8]} 3. Bc4 {[%clk 0:09:48]} 3... c5 {[%clk 0:09:40.2]} 4. Nf3 {[%clk 0:09:36]} 4... Nc6 {[%clk 0:09:31.3]} 5. Nd5 {[%clk 0:09:22.3]} 5... Nxe4 {[%clk 0:09:23.5]} 6. Qe2 {[%clk 0:09:00.3]} 6... f5 {[%clk 0:09:14.6]} 7. d3 {[%clk 0:08:44.6]} 7... Nf6 {[%clk 0:08:40.1]} 8. Bg5 {[%clk 0:08:33.8]} 8... Be7 {[%clk 0:08:23.3]} 9. Nxe5 {[%clk 0:07:52.4]} 9... O-O {[%clk 0:08:13.9]} 10. Nxe7+ {[%clk 0:07:16.1]} 10... Kh8 {[%clk 0:08:10.6]} 11. Nf7+ {[%clk 0:06:14]} 11... Rxf7 {[%clk 0:07:56.5]} 12. Bxf7 {[%clk 0:06:08.5]} 12... Nxe7 {[%clk 0:07:54]} 13. Bxf6 {[%clk 0:05:49.9]} 13... gxf6 {[%clk 0:07:43.2]} 14. O-O-O {[%clk 0:05:03.7]} 14... d5 {[%clk 0:07:17.9]} 15. Rde1 {[%clk 0:04:45.1]} 15... Nc6 {[%clk 0:06:46.3]} 16. Qe8+ {[%clk 0:04:31.6]} 16... Qxe8 {[%clk 0:06:33.7]} 17. Rxe8+ {[%clk 0:04:22.8]} 17... Kg7 {[%clk 0:06:33.1]} 18. Bxd5 {[%clk 0:04:09]} 18... Bd7 {[%clk 0:06:02.4]} 19. Rxa8 {[%clk 0:04:00.8]} 1-0

[Event "Live Chess"]
[Site "Chess.com"]
[Date "2010.12.11"]
[Round "-"]
[White "hipposcottimus"]
[Black "ayman_ss"]
[Result "0-1"]
[CurrentPosition "4r3/pp2P3/2pk1b2/7p/1P6/P4P2/6PP/4R1K1 w - -"]
[Timezone "UTC"]
[ECO "C50"]
[ECOUrl "https://www.chess.com/openings/Italian-Game-Blackburne-Shilling-Gambit"]
[UTCDate "2010.12.11"]
[UTCTime "02:00:48"]
[WhiteElo "1626"]
[BlackElo "1573"]
[TimeControl "60"]
[Termination "ayman_ss won on time"]
[StartTime "02:00:48"]
[EndDate "2010.12.11"]
[EndTime "02:02:44"]
[Link "https://www.chess.com/game/live/76090237"]

1. e4 {[%clk 0:01:00]} 1... e5 {[%clk 0:01:00]} 2. Nf3 {[%clk 0:00:50.5]} 2... Nc6 {[%clk 0:00:58.1]} 3. Bc4 {[%clk 0:00:50.2]} 3... Nd4 {[%clk 0:00:56.3]} 4. Nxd4 {[%clk 0:00:49.1]} 4... exd4 {[%clk 0:00:55.1]} 5. Qf3 {[%clk 0:00:48.9]} 5... Qe7 {[%clk 0:00:53.6]} 6. d3 {[%clk 0:00:47.4]} 6... c6 {[%clk 0:00:52.3]} 7. c3 {[%clk 0:00:47]} 7... d5 {[%clk 0:00:51]} 8. Bb3 {[%clk 0:00:46.5]} 8... dxc3 {[%clk 0:00:49.8]} 9. Nxc3 {[%clk 0:00:44.6]} 9... dxe4 {[%clk 0:00:48.9]} 10. Nxe4 {[%clk 0:00:43.7]} 10... Nf6 {[%clk 0:00:47.9]} 11. O-O {[%clk 0:00:42.6]} 11... Nxe4 {[%clk 0:00:46.3]} 12. dxe4 {[%clk 0:00:42.1]} 12... Be6 {[%clk 0:00:44.4]} 13. Bc2 {[%clk 0:00:38.2]} 13... O-O-O {[%clk 0:00:42.7]} 14. e5 {[%clk 0:00:34.9]} 14... h5 {[%clk 0:00:40.1]} 15. a3 {[%clk 0:00:26.5]} 15... g5 {[%clk 0:00:38.9]} 16. b4 {[%clk 0:00:26.1]} 16... f5 {[%clk 0:00:37.4]} 17. Bxf5 {[%clk 0:00:23.5]} 17... Bxf5 {[%clk 0:00:35.9]} 18. Qxf5+ {[%clk 0:00:22.6]} 18... Kb8 {[%clk 0:00:33.8]} 19. e6 {[%clk 0:00:22]} 19... Bg7 {[%clk 0:00:32.3]} 20. Bxg5 {[%clk 0:00:20.1]} 20... Rdf8 {[%clk 0:00:31.2]} 21. Bxe7 {[%clk 0:00:11.8]} 21... Rxf5 {[%clk 0:00:29.4]} 22. Rae1 {[%clk 0:00:10.3]} 22... Re8 {[%clk 0:00:27.6]} 23. Bd6+ {[%clk 0:00:09.5]} 23... Kc8 {[%clk 0:00:25.6]} 24. e7 {[%clk 0:00:09.2]} 24... Bf6 {[%clk 0:00:24.4]} 25. Re6 {[%clk 0:00:05.2]} 25... Kd7 {[%clk 0:00:22.3]} 26. Rfe1 {[%clk 0:00:03.1]} 26... Rd5 {[%clk 0:00:20.3]} 27. f3 {[%clk 0:00:02.8]} 27... Rxd6 {[%clk 0:00:19.2]} 28. Rxd6+ {[%clk 0:00:00.3]} 28... Kxd6 {[%clk 0:00:17.9]} 0-1

[Event "Live Chess"]
[Site "Chess.com"]
[Date "2010.12.11"]
[Round "-"]
[White "CryingWolf"]
[Black "hipposcottimus"]
[Result "1-0"]
[CurrentPosition "2r2k2/4q1pQ/2pbP3/p3p3/1p6/2NPB3/PPP2PP1/1K1R3R w - -"]
[Timezone "UTC"]
[ECO "C57"]
[ECOUrl "https://www.chess.com/openings/Italian-Game-Knight-Attack-Polerio-Defense"]
[UTCDate "2010.12.11"]
[UTCTime "01:58:11"]
[WhiteElo "1555"]
[BlackElo "1635"]
[TimeControl "60"]
[Termination "CryingWolf won by resignation"]
[StartTime "01:58:11"]
[EndDate "2010.12.11"]
[EndTime "01:59:58"]
[Link "https://www.chess.com/game/live/76089709"]

1. e4 {[%clk 0:01:00]} 1... e5 {[%clk 0:01:00]} 2. Nf3 {[%clk 0:00:59.6]} 2... Nc6 {[%clk 0:00:59.8]} 3. Bc4 {[%clk 0:00:58.7]} 3... Nf6 {[%clk 0:00:59.6]} 4. Ng5 {[%clk 0:00:55.3]} 4... d5 {[%clk 0:00:58.8]} 5. exd5 {[%clk 0:00:54.6]} 5... Na5 {[%clk 0:00:58.1]} 6. Qe2 {[%clk 0:00:51.1]} 6... Nxc4 {[%clk 0:00:50.4]} 7. Qxc4 {[%clk 0:00:50.5]} 7... Bd6 {[%clk 0:00:49.4]} 8. Nc3 {[%clk 0:00:47.3]} 8... O-O {[%clk 0:00:46.4]} 9. d3 {[%clk 0:00:46.3]} 9... Ng4 {[%clk 0:00:42.1]} 10. h3 {[%clk 0:00:41.8]} 10... f6 {[%clk 0:00:35.3]} 11. Ne6 {[%clk 0:00:36.4]} 11... Bxe6 {[%clk 0:00:32.4]} 12. dxe6 {[%clk 0:00:34.4]} 12... Qe7 {[%clk 0:00:19]} 13. hxg4 {[%clk 0:00:32.4]} 13... f5 {[%clk 0:00:18.7]} 14. gxf5 {[%clk 0:00:30.6]} 14... Rxf5 {[%clk 0:00:17.4]} 15. Be3 {[%clk 0:00:29.9]} 15... a5 {[%clk 0:00:12.1]} 16. O-O-O {[%clk 0:00:28.6]} 16... c6 {[%clk 0:00:10.5]} 17. Kb1 {[%clk 0:00:26.2]} 17... Rc8 {[%clk 0:00:09.9]} 18. Qg4 {[%clk 0:00:23.4]} 18... b5 {[%clk 0:00:09.5]} 19. Qxf5 {[%clk 0:00:22.2]} 19... b4 {[%clk 0:00:05.8]} 20. Qxh7+ {[%clk 0:00:19.4]} 20... Kf8 {[%clk 0:00:04.1]} 1-0

[Event "Live Chess"]
[Site "Chess.com"]
[Date "2010.12.11"]
[Round "-"]
[White "karpovjunior"]
[Black "hipposcottimus"]
[Result "0-1"]
[CurrentPosition "8/pp6/1P6/P7/6k1/5p2/4q3/4K3 w - -"]
[Timezone "UTC"]
[ECO "A01"]
[ECOUrl "https://www.chess.com/openings/Nimzowitsch-Larsen-Attack-Modern-Variation"]
[UTCDate "2010.12.11"]
[UTCTime "01:53:51"]
[WhiteElo "1352"]
[BlackElo "1644"]
[TimeControl "60"]
[Termination "hipposcottimus won by checkmate"]
[StartTime "01:53:51"]
[EndDate "2010.12.11"]
[EndTime "01:56:05"]
[Link "https://www.chess.com/game/live/76088793"]

1. b3 {[%clk 0:01:00]} 1... e5 {[%clk 0:01:00]} 2. f3 {[%clk 0:00:58.3]} 2... d5 {[%clk 0:00:58]} 3. Nh3 {[%clk 0:00:57]} 3... Bxh3 {[%clk 0:00:55.3]} 4. gxh3 {[%clk 0:00:55.6]} 4... Bd6 {[%clk 0:00:52.9]} 5. e4 {[%clk 0:00:54.4]} 5... Qe7 {[%clk 0:00:48.7]} 6. exd5 {[%clk 0:00:53.2]} 6... Nf6 {[%clk 0:00:45.5]} 7. Qe2 {[%clk 0:00:51.3]} 7... c6 {[%clk 0:00:42.7]} 8. Ba3 {[%clk 0:00:49.7]} 8... Bxa3 {[%clk 0:00:39.4]} 9. Nxa3 {[%clk 0:00:47.5]} 9... Qxa3 {[%clk 0:00:34]} 10. Qxe5+ {[%clk 0:00:47.1]} 10... Qe7 {[%clk 0:00:33.4]} 11. f4 {[%clk 0:00:44.7]} 11... cxd5 {[%clk 0:00:29.2]} 12. Qxe7+ {[%clk 0:00:43.3]} 12... Kxe7 {[%clk 0:00:28.9]} 13. Bb5 {[%clk 0:00:40.3]} 13... Re8 {[%clk 0:00:28.6]} 14. Bxe8 {[%clk 0:00:38.5]} 14... Kxe8 {[%clk 0:00:28.3]} 15. f5 {[%clk 0:00:37.8]} 15... Kf8 {[%clk 0:00:28]} 16. Rf1 {[%clk 0:00:37.3]} 16... Nc6 {[%clk 0:00:27.6]} 17. d3 {[%clk 0:00:36.8]} 17... Re8+ {[%clk 0:00:27.2]} 18. Kd1 {[%clk 0:00:34.6]} 18... d4 {[%clk 0:00:26.8]} 19. c3 {[%clk 0:00:33]} 19... Rd8 {[%clk 0:00:26.4]} 20. cxd4 {[%clk 0:00:31.7]} 20... Rxd4 {[%clk 0:00:25.3]} 21. Rc1 {[%clk 0:00:31.3]} 21... Rxd3+ {[%clk 0:00:24.6]} 22. Kc2 {[%clk 0:00:28.9]} 22... Rxh3 {[%clk 0:00:24.3]} 23. Rcd1 {[%clk 0:00:27.2]} 23... Rxh2+ {[%clk 0:00:23.9]} 24. Kc1 {[%clk 0:00:25]} 24... Nb4 {[%clk 0:00:22.4]} 25. Rd8+ {[%clk 0:00:23.1]} 25... Ne8 {[%clk 0:00:22]} 26. Re1 {[%clk 0:00:19.7]} 26... Rc2+ {[%clk 0:00:16.7]} 27. Kb1 {[%clk 0:00:15.1]} 27... g6 {[%clk 0:00:15]} 28. Rexe8+ {[%clk 0:00:13.7]} 28... Kg7 {[%clk 0:00:14.7]} 29. Rg8+ {[%clk 0:00:12.7]} 29... Kh6 {[%clk 0:00:13.4]} 30. Rxg6+ {[%clk 0:00:11.8]} 30... fxg6 {[%clk 0:00:12.5]} 31. Rd2 {[%clk 0:00:11.4]} 31... gxf5 {[%clk 0:00:11.5]} 32. Rxc2 {[%clk 0:00:10.4]} 32... Nxc2 {[%clk 0:00:10.4]} 33. Kxc2 {[%clk 0:00:08.5]} 33... f4 {[%clk 0:00:10.1]} 34. b4 {[%clk 0:00:08.1]} 34... Kg5 {[%clk 0:00:09.8]} 35. Kd2 {[%clk 0:00:07.8]} 35... Kg4 {[%clk 0:00:09.6]} 36. Ke2 {[%clk 0:00:07.5]} 36... f3+ {[%clk 0:00:09.3]} 37. Kf2 {[%clk 0:00:06.8]} 37... h5 {[%clk 0:00:09]} 38. b5 {[%clk 0:00:06.1]} 38... h4 {[%clk 0:00:08.7]} 39. a3 {[%clk 0:00:05.7]} 39... h3 {[%clk 0:00:08.3]} 40. a4 {[%clk 0:00:04.4]} 40... h2 {[%clk 0:00:07.9]} 41. a5 {[%clk 0:00:04]} 41... h1=Q {[%clk 0:00:06.4]} 42. b6 {[%clk 0:00:03.3]} 42... Qg2+ {[%clk 0:00:06.1]} 43. Ke1 {[%clk 0:00:02]} 43... Qe2# {[%clk 0:00:05.8]} 0-1

[Event "Live Chess"]
[Site "Chess.com"]
[Date "2010.12.11"]
[Round "-"]
[White "downtown_chess"]
[Black "hipposcottimus"]
[Result "1-0"]
[CurrentPosition "r1bqkb1r/pp3ppp/8/1B1n4/4N3/P1N1P2P/1P3PP1/R2Q1RK1 b - -"]
[Timezone "UTC"]
[ECO "D02"]
[ECOUrl "https://www.chess.com/openings/Queens-Pawn-Opening-Zukertort-Variation-2...c6"]
[UTCDate "2010.12.11"]
[UTCTime "01:52:20"]
[WhiteElo "1541"]
[BlackElo "1641"]
[TimeControl "120"]
[Termination "downtown_chess won by resignation"]
[StartTime "01:52:20"]
[EndDate "2010.12.11"]
[EndTime "01:53:15"]
[Link "https://www.chess.com/game/live/76088507"]

1. d4 {[%clk 0:02:00]} 1... d5 {[%clk 0:02:00]} 2. Nf3 {[%clk 0:01:59.7]} 2... c6 {[%clk 0:01:59.5]} 3. h3 {[%clk 0:01:59.2]} 3... Nd7 {[%clk 0:01:59.2]} 4. a3 {[%clk 0:01:57.4]} 4... Ngf6 {[%clk 0:01:58.9]} 5. Bg5 {[%clk 0:01:56.2]} 5... Ne4 {[%clk 0:01:55.7]} 6. e3 {[%clk 0:01:54.4]} 6... Nxg5 {[%clk 0:01:53.5]} 7. Nxg5 {[%clk 0:01:53.5]} 7... e5 {[%clk 0:01:53.2]} 8. Nf3 {[%clk 0:01:52.1]} 8... e4 {[%clk 0:01:52.5]} 9. Nfd2 {[%clk 0:01:51.1]} 9... c5 {[%clk 0:01:49.1]} 10. c4 {[%clk 0:01:49.7]} 10... cxd4 {[%clk 0:01:47.8]} 11. cxd5 {[%clk 0:01:46.8]} 11... d3 {[%clk 0:01:46.7]} 12. Nxe4 {[%clk 0:01:44.7]} 12... Nb6 {[%clk 0:01:46.4]} 13. Bxd3 {[%clk 0:01:42.7]} 13... Nxd5 {[%clk 0:01:45.2]} 14. O-O {[%clk 0:01:36.7]} 14... Ke7 {[%clk 0:01:44.1]} 15. Nbc3 {[%clk 0:01:33.1]} 15... Ke8 {[%clk 0:01:43.7]} 16. Bb5+ {[%clk 0:01:29.5]} 1-0

[Event "Live Chess"]
[Site "Chess.com"]
[Date "2010.12.11"]
[Round "-"]
[White "hipposcottimus"]
[Black "GodelIncompleteness"]
[Result "1-0"]
[CurrentPosition "4k3/6pp/p2p4/2p4B/3n1P2/p5P1/PP3K1P/8 b - -"]
[Timezone "UTC"]
[ECO "B40"]
[ECOUrl "https://www.chess.com/openings/Sicilian-Defense-French-Variation"]
[UTCDate "2010.12.11"]
[UTCTime "01:45:06"]
[WhiteElo "1651"]
[BlackElo "1679"]
[TimeControl "60"]
[Termination "hipposcottimus won on time"]
[StartTime "01:45:06"]
[EndDate "2010.12.11"]
[EndTime "01:47:19"]
[Link "https://www.chess.com/game/live/76086949"]

1. e4 {[%clk 0:01:00]} 1... c5 {[%clk 0:01:00]} 2. Nf3 {[%clk 0:00:59.6]} 2... e6 {[%clk 0:01:00]} 3. Bb5 {[%clk 0:00:57.6]} 3... a6 {[%clk 0:01:00]} 4. Be2 {[%clk 0:00:56.2]} 4... b5 {[%clk 0:01:00]} 5. d4 {[%clk 0:00:55.7]} 5... Bb7 {[%clk 0:00:58.9]} 6. d5 {[%clk 0:00:55]} 6... d6 {[%clk 0:00:57.3]} 7. dxe6 {[%clk 0:00:53.8]} 7... fxe6 {[%clk 0:00:56.3]} 8. Bg5 {[%clk 0:00:53.5]} 8... Be7 {[%clk 0:00:55]} 9. Qd2 {[%clk 0:00:52.4]} 9... Bxg5 {[%clk 0:00:53.1]} 10. Nxg5 {[%clk 0:00:52.2]} 10... Nf6 {[%clk 0:00:52.3]} 11. Nxe6 {[%clk 0:00:51.4]} 11... Qe7 {[%clk 0:00:51.8]} 12. Bg4 {[%clk 0:00:47.2]} 12... Bxe4 {[%clk 0:00:49.9]} 13. O-O {[%clk 0:00:44.3]} 13... Nc6 {[%clk 0:00:42.1]} 14. Bh3 {[%clk 0:00:43]} 14... Nb4 {[%clk 0:00:34.7]} 15. Re1 {[%clk 0:00:42.5]} 15... Bd5 {[%clk 0:00:33.6]} 16. Na3 {[%clk 0:00:39.6]} 16... Bxe6 {[%clk 0:00:32.2]} 17. Rxe6 {[%clk 0:00:35.3]} 17... Ne4 {[%clk 0:00:21.8]} 18. Rxe7+ {[%clk 0:00:31.6]} 18... Kxe7 {[%clk 0:00:21.8]} 19. Qe3 {[%clk 0:00:29.4]} 19... Rae8 {[%clk 0:00:17.1]} 20. Qxe4+ {[%clk 0:00:27.3]} 20... Kd8 {[%clk 0:00:17.1]} 21. Qa8+ {[%clk 0:00:26.2]} 21... Ke7 {[%clk 0:00:16]} 22. Re1+ {[%clk 0:00:23.6]} 22... Kf7 {[%clk 0:00:14.6]} 23. Rxe8 {[%clk 0:00:20.8]} 23... Rxe8 {[%clk 0:00:13.4]} 24. Qf3+ {[%clk 0:00:17.3]} 24... Kg8 {[%clk 0:00:12.3]} 25. g3 {[%clk 0:00:17]} 25... Re1+ {[%clk 0:00:10.9]} 26. Kg2 {[%clk 0:00:16.6]} 26... Nxc2 {[%clk 0:00:09.9]} 27. Qa8+ {[%clk 0:00:12]} 27... Kf7 {[%clk 0:00:08.9]} 28. f3 {[%clk 0:00:09.6]} 28... Re2+ {[%clk 0:00:06.5]} 29. Kf1 {[%clk 0:00:08.8]} 29... Re8 {[%clk 0:00:04.8]} 30. Kf2 {[%clk 0:00:08.2]} 30... Nd4 {[%clk 0:00:03.5]} 31. Qxe8+ {[%clk 0:00:05]} 31... Kxe8 {[%clk 0:00:02]} 32. f4 {[%clk 0:00:04.8]} 32... b4 {[%clk 0:00:01.3]} 33. Bg4 {[%clk 0:00:04.5]} 33... bxa3 {[%clk 0:00:00.3]} 34. Bh5+ {[%clk 0:00:04.2]} 1-0

[Event "Live Chess"]
[Site "Chess.com"]
[Date "2010.12.11"]
[Round "-"]
[White "ChessNut71"]
[Black "hipposcottimus"]
[Result "1-0"]
[CurrentPosition "r1b2N1k/ppp1b1p1/2n4p/2P2p2/2B1p3/P6P/1P3PP1/R1BN1RK1 b - -"]
[Timezone "UTC"]
[ECO "C47"]
[ECOUrl "https://www.chess.com/openings/Four-Knights-Game"]
[UTCDate "2010.12.11"]
[UTCTime "01:40:15"]
[WhiteElo "1531"]
[BlackElo "1651"]
[TimeControl "60"]
[Termination "ChessNut71 won by resignation"]
[StartTime "01:40:15"]
[EndDate "2010.12.11"]
[EndTime "01:40:58"]
[Link "https://www.chess.com/game/live/76085931"]

1. e4 {[%clk 0:01:00]} 1... e5 {[%clk 0:01:00]} 2. Nf3 {[%clk 0:00:59]} 2... Nc6 {[%clk 0:00:59.6]} 3. Nc3 {[%clk 0:00:59]} 3... Nf6 {[%clk 0:00:59.2]} 4. d3 {[%clk 0:00:59]} 4... d5 {[%clk 0:00:58.8]} 5. h3 {[%clk 0:00:59]} 5... dxe4 {[%clk 0:00:57.6]} 6. dxe4 {[%clk 0:00:58.4]} 6... Qxd1+ {[%clk 0:00:54.3]} 7. Nxd1 {[%clk 0:00:56.8]} 7... Nxe4 {[%clk 0:00:53.8]} 8. Be2 {[%clk 0:00:54.8]} 8... Nd6 {[%clk 0:00:53.5]} 9. O-O {[%clk 0:00:53.5]} 9... Be7 {[%clk 0:00:53.2]} 10. a3 {[%clk 0:00:52.8]} 10... O-O {[%clk 0:00:52.9]} 11. c4 {[%clk 0:00:52.2]} 11... f5 {[%clk 0:00:52.6]} 12. c5 {[%clk 0:00:51.5]} 12... Ne4 {[%clk 0:00:50.9]} 13. Bd3 {[%clk 0:00:48.2]} 13... Ng5 {[%clk 0:00:49.1]} 14. Nxg5 {[%clk 0:00:45.5]} 14... e4 {[%clk 0:00:48.7]} 15. Bc4+ {[%clk 0:00:42]} 15... Kh8 {[%clk 0:00:47.4]} 16. Ne6 {[%clk 0:00:40.3]} 16... h6 {[%clk 0:00:47]} 17. Nxf8 {[%clk 0:00:39.1]} 1-0